bitfinex-derivatives/quotes_SOLF0:USTF0_20260129
["timestamp","ask_amount","ask_price","bid_price","bid_amount"]
[1769725489966,32.53905328,117.42,117.37,22.70604829]
[1769725490171,25.73554519,117.42,117.37,22.70604829]
[1769725491264,6.79855077,117.41,117.37,22.70604829]
[1769725491457,33.41384519,117.42,117.37,22.70604829]
[1769725491763,6.79855077,117.41,117.37,22.70604829]
[1769725492059,33.41384519,117.42,117.37,22.70604829]
[1769725494354,30.62650152,117.42,117.37,22.70604829]
[1769725494763,30.62650152,117.42,117.37,25.49339196]
[1769725497759,22.15545931,117.47,117.41,23.73716788]
[1769725497960,22.15545931,117.47,117.44,2.78734367]
[1769725498167,22.15545931,117.47,117.42,22.61321512]
[1769725498362,22.15545931,117.47,117.43,2.78734367]
[1769725499364,329.32729182,117.5,117.46,2.78734367]
[1769725499365,22.15545931,117.49,117.46,2.78734367]
[1769725500265,22.15545931,117.51,117.48,2.78734367]
[1769725500569,22.15545931,117.51,117.47,25.40055879]
[1769725500765,22.15545931,117.51,117.47,22.61321512]
[1769725502671,24.94280298,117.49,117.42,22.61321512]
[1769725502974,2.78734367,117.48,117.42,25.40055879]
[1769725503170,22.15545931,117.49,117.44,25.40055879]
[1769725505370,22.15545931,117.49,117.44,22.61321512]
[1769725509470,24.94280298,117.48,117.42,22.61321512]
[1769725509672,24.94280298,117.47,117.42,22.61321512]
[1769725515978,22.15545931,117.47,117.42,22.61321512]
[1769725519181,24.94280298,117.47,117.42,22.61321512]
[1769725522485,22.15545931,117.47,117.42,22.61321512]
[1769725525489,22.15545931,117.47,117.42,25.40055879]
[1769725525685,26.29857,117.49,117.43,23.77124919]
[1769725526786,26.29857,117.48,117.43,23.77124919]
[1769725531398,23.51184294,117.48,117.43,26.55797625]
[1769725534503,26.1108645,117.47,117.42,29.47367167]
[1769725534795,23.32413744,117.47,117.42,32.26039873]
[1769725537400,23.32413744,117.47,117.42,24.58239873]
[1769725537899,23.32413744,117.47,117.42,21.79567167]
[1769725538102,23.32413744,117.47,117.42,24.58239873]
[1769725547206,6.81835455,117.46,117.42,24.58239873]
[1769725547408,23.32413744,117.47,117.42,24.58239873]
[1769725547600,6.81843119,117.46,117.42,24.58239873]
[1769725547797,23.32413744,117.47,117.42,24.58239873]
[1769725548006,6.81848744,117.46,117.42,24.58239873]
[1769725548205,23.32413744,117.47,117.42,24.58239873]
[1769725548409,6.81870606,117.46,117.42,24.58239873]
[1769725548607,23.32413744,117.47,117.42,24.58239873]
[1769725548807,6.81870606,117.46,117.42,24.58239873]
[1769725549106,23.32413744,117.47,117.42,24.58239873]
[1769725549297,6.81870606,117.46,117.42,24.58239873]
[1769725549499,23.32413744,117.47,117.42,24.58239873]
[1769725549702,6.81957791,117.46,117.42,24.58239873]
[1769725549905,23.32413744,117.47,117.42,24.58239873]
[1769725550106,6.81957791,117.46,117.42,24.58239873]
[1769725550303,23.32413744,117.47,117.42,24.58239873]
[1769725550507,6.82065167,117.46,117.42,24.58239873]
[1769725550708,23.32413744,117.47,117.42,24.58239873]
[1769725550906,6.82065167,117.46,117.42,24.58239873]
[1769725551104,23.32413744,117.47,117.42,24.58239873]
[1769725551308,6.82065167,117.46,117.43,2.78672706]
[1769725551610,23.32413744,117.47,117.43,2.78672706]
[1769725551809,6.82133163,117.46,117.43,2.78672706]
[1769725552009,23.32413744,117.47,117.43,2.78672706]
[1769725552411,6.8217578,117.46,117.43,2.78672706]
[1769725552603,23.32413744,117.47,117.43,2.78672706]
[1769725553308,6.82259775,117.46,117.43,2.78672706]
[1769725553508,23.32413744,117.47,117.43,2.78672706]
[1769725553708,6.82259775,117.46,117.43,2.78672706]
[1769725553907,23.32413744,117.47,117.43,2.78672706]
[1769725554109,6.82259775,117.46,117.43,2.78672706]
[1769725554322,23.32413744,117.47,117.43,2.78672706]
[1769725554508,6.82374255,117.46,117.43,2.78672706]
[1769725554811,23.32413744,117.47,117.43,2.78672706]
[1769725555009,6.82374255,117.46,117.43,2.78672706]
[1769725555209,23.32413744,117.47,117.43,2.78672706]
[1769725555410,6.82364941,117.46,117.43,2.78672706]
[1769725555611,23.32413744,117.47,117.43,2.78672706]
[1769725555808,6.82307446,117.46,117.43,2.78672706]
[1769725556013,23.32413744,117.47,117.43,25.85399403]
[1769725556208,6.82307446,117.46,117.43,25.85399403]
[1769725556514,23.32413744,117.47,117.43,25.85399403]
[1769725556710,6.82300984,117.46,117.43,25.85399403]
[1769725556910,23.32413744,117.47,117.43,25.85399403]
[1769725557112,6.82300984,117.46,117.43,25.85399403]
[1769725557305,23.32413744,117.47,117.43,25.85399403]
[1769725557609,6.82295649,117.46,117.43,25.85399403]
[1769725557808,23.32413744,117.47,117.43,25.85399403]
[1769725558014,6.82295649,117.46,117.43,25.85399403]
[1769725558215,23.32413744,117.47,117.43,25.85399403]
[1769725558417,6.82291398,117.46,117.43,25.85399403]
[1769725558711,23.32413744,117.47,117.43,25.85399403]
[1769725558911,6.82291398,117.46,117.43,25.85399403]
[1769725559109,23.32413744,117.47,117.43,25.85399403]
[1769725559309,6.82287504,117.46,117.43,25.85399403]
[1769725559514,23.32413744,117.47,117.43,23.06726697]
[1769725559706,6.82287761,117.46,117.43,23.06726697]
[1769725559910,23.32413744,117.47,117.43,23.06726697]
[1769725560216,6.82287761,117.46,117.43,23.06726697]
[1769725560517,23.32413744,117.47,117.43,23.06726697]
[1769725560816,6.82286996,117.46,117.43,23.06726697]
[1769725561116,23.32413744,117.47,117.43,23.06726697]
[1769725561318,23.32413744,117.47,117.43,30.74446697]
[1769725562117,23.32413744,117.47,117.43,23.06726697]
[1769725571607,6.8229939,117.46,117.43,23.06726697]
[1769725571813,23.32413744,117.47,117.43,23.06726697]
[1769725572009,6.8229939,117.46,117.43,23.06726697]
[1769725572209,23.32413744,117.47,117.43,23.06726697]
[1769725572417,6.82295971,117.46,117.43,23.06726697]
[1769725572611,23.32413744,117.47,117.43,23.06726697]
[1769725572816,6.82295971,117.46,117.43,23.06726697]
[1769725573016,23.32413744,117.47,117.43,23.06726697]
[1769725573216,6.82295971,117.46,117.43,23.06726697]
[1769725573415,23.32413744,117.47,117.43,23.06726697]
[1769725573615,6.82293679,117.46,117.43,23.06726697]
[1769725573908,23.32413744,117.47,117.43,23.06726697]
[1769725574111,6.82293679,117.46,117.43,23.06726697]
[1769725574316,23.32413744,117.47,117.43,23.06726697]
[1769725574522,6.82293023,117.46,117.43,23.06726697]
[1769725574724,23.32413744,117.47,117.43,23.06726697]
[1769725574923,6.82293023,117.46,117.43,23.06726697]
[1769725575122,23.32413744,117.47,117.43,23.06726697]
[1769725575324,6.82292953,117.46,117.43,23.06726697]
[1769725575529,23.32413744,117.47,117.43,23.06726697]
[1769725575729,6.82292953,117.46,117.43,23.06726697]
[1769725576031,23.32413744,117.47,117.43,23.06726697]
[1769725576215,6.82292953,117.46,117.43,23.06726697]
[1769725576415,23.32413744,117.47,117.43,23.06726697]
[1769725576614,6.82292883,117.46,117.43,25.85399403]
[1769725576918,23.32413744,117.47,117.43,25.85399403]
[1769725577118,6.82292838,117.46,117.43,23.06726697]
[1769725577323,23.32413744,117.47,117.43,23.06726697]
[1769725577526,6.82292849,117.46,117.43,23.06726697]
[1769725577727,23.32413744,117.47,117.43,23.06726697]
[1769725577928,6.82292849,117.46,117.43,23.06726697]
[1769725578124,23.32413744,117.47,117.43,23.06726697]
[1769725578326,6.82291445,117.46,117.43,23.06726697]
[1769725578522,23.32413744,117.47,117.43,23.06726697]
[1769725578725,6.8229286,117.46,117.43,23.06726697]
[1769725578924,23.32413744,117.47,117.43,23.06726697]
[1769725579123,6.8229286,117.46,117.43,23.06726697]
[1769725579324,23.32413744,117.47,117.43,23.06726697]
[1769725579525,6.82292871,117.46,117.43,23.06726697]
[1769725579731,23.32413744,117.47,117.43,23.06726697]
[1769725580028,6.82292871,117.46,117.43,23.06726697]
[1769725580222,23.32413744,117.47,117.43,23.06726697]
[1769725580421,6.82297197,117.46,117.43,23.06726697]
[1769725580631,23.32413744,117.47,117.43,23.06726697]
[1769725580932,6.82297197,117.46,117.43,23.06726697]
[1769725581118,23.32413744,117.47,117.43,23.06726697]
[1769725581323,6.82301485,117.46,117.43,23.06726697]
[1769725581532,23.32413744,117.47,117.43,23.06726697]
[1769725581727,6.82301485,117.46,117.43,23.06726697]
[1769725581926,23.32413744,117.47,117.43,23.06726697]
[1769725582227,30.75038171,117.49,117.44,14.91511651]
[1769725582728,33.53710877,117.49,117.44,14.91511651]
[1769725584431,33.53710877,117.49,117.44,22.59191651]
[1769725585534,33.53691753,117.49,117.44,22.59191651]
[1769725593342,23.07668171,117.49,117.44,22.59191651]
[1769725593542,25.86321753,117.49,117.44,22.59191651]
[1769725594342,6.78571821,117.48,117.44,22.59191651]
[1769725594542,25.86321753,117.49,117.44,22.59191651]
[1769725594743,6.78571497,117.48,117.44,22.59191651]
[1769725595043,25.86321753,117.49,117.44,22.59191651]
[1769725595342,9.57225079,117.48,117.44,22.59191651]
[1769725595647,2.78653582,117.48,117.44,22.59191651]
[1769725597643,2.78653582,117.48,117.44,14.91511651]
[1769725603455,6.78550279,117.47,117.44,14.91511651]
[1769725603749,2.78653582,117.48,117.44,14.91511651]
[1769725603944,6.78550279,117.47,117.44,14.91511651]
[1769725604145,2.78653582,117.48,117.44,14.91511651]
[1769725604351,6.78590543,117.47,117.44,14.91511651]
[1769725604651,2.78653582,117.48,117.44,14.91511651]
[1769725604851,6.78590543,117.47,117.44,14.91511651]
[1769725605052,2.78653582,117.48,117.44,14.91511651]
[1769725605351,6.78590543,117.47,117.44,14.91511651]
[1769725605553,2.78653582,117.48,117.44,14.91511651]
[1769725605753,6.78595798,117.47,117.44,14.91511651]
[1769725606053,2.78653582,117.48,117.44,14.91511651]
[1769725606254,6.78595798,117.47,117.44,14.91511651]
[1769725606450,2.78653582,117.48,117.44,14.91511651]
[1769725606652,6.78601028,117.47,117.44,14.91511651]
[1769725606843,2.78653582,117.48,117.44,14.91511651]
[1769725607145,6.78600962,117.47,117.44,14.91511651]
[1769725607341,2.78653582,117.48,117.44,14.91511651]
[1769725607546,6.7860668,117.47,117.44,14.91511651]
[1769725607747,2.78653582,117.48,117.44,14.91511651]
[1769725607947,6.7860668,117.47,117.44,14.91511651]
[1769725608144,2.78653582,117.48,117.44,14.91511651]
[1769725608357,6.78612489,117.47,117.44,14.91511651]
[1769725608554,33.53691753,117.49,117.44,14.91511651]
[1769725608856,6.78577804,117.48,117.44,14.91511651]
[1769725609056,6.78577804,117.47,117.44,14.91511651]
[1769725609254,33.53691753,117.49,117.44,14.91511651]
[1769725609448,6.78588656,117.48,117.44,22.59191651]
[1769725609654,33.53691753,117.49,117.44,22.59191651]
[1769725609851,6.78578936,117.48,117.44,22.59191651]
[1769725610052,33.53691753,117.49,117.44,22.59191651]
[1769725610253,6.78578936,117.48,117.44,22.59191651]
[1769725610450,33.53691753,117.49,117.44,22.59191651]
[1769725610655,6.78580814,117.48,117.44,22.59191651]
[1769725610856,33.53691753,117.49,117.44,22.59191651]
[1769725611060,6.7858121,117.48,117.44,22.59191651]
[1769725611257,33.53691753,117.49,117.44,22.59191651]
[1769725611463,6.78584867,117.48,117.44,22.59191651]
[1769725611764,33.53691753,117.49,117.44,22.59191651]
[1769725611955,6.78584471,117.48,117.44,22.59191651]
[1769725612151,33.53691753,117.49,117.44,22.59191651]
[1769725612352,6.7858822,117.48,117.44,22.59191651]
[1769725612556,33.53691753,117.49,117.44,22.59191651]
[1769725612757,6.7858822,117.48,117.44,22.59191651]
[1769725612963,33.53691753,117.49,117.44,22.59191651]
[1769725613164,6.7858822,117.48,117.44,22.59191651]
[1769725613364,33.53691753,117.49,117.44,22.59191651]
[1769725613663,6.78594356,117.48,117.44,22.59191651]
[1769725613858,33.53691753,117.49,117.44,14.91511651]
[1769725614059,6.78594356,117.48,117.44,14.91511651]
[1769725614259,33.53691753,117.49,117.44,14.91511651]
[1769725614462,6.78602539,117.48,117.44,14.91511651]
[1769725614664,33.53691753,117.49,117.44,14.91511651]
[1769725614865,6.78602539,117.48,117.44,14.91511651]
[1769725615060,33.53691753,117.49,117.44,14.91511651]
[1769725615266,6.78602539,117.48,117.44,14.91511651]
[1769725615465,33.53691753,117.49,117.44,14.91511651]
[1769725615662,6.78612826,117.48,117.44,14.91511651]
[1769725615963,33.53691753,117.49,117.44,14.91511651]
[1769725616166,6.75579185,117.48,117.44,14.91511651]
[1769725616465,33.53691753,117.49,117.44,14.91511651]
[1769725616666,6.75591605,117.48,117.44,14.91511651]
[1769725616858,33.53691753,117.49,117.44,14.91511651]
[1769725617059,6.75591605,117.48,117.44,14.91511651]
[1769725617259,33.53691753,117.49,117.44,14.91511651]
[1769725617459,6.75604839,117.48,117.44,14.91511651]
[1769725617667,33.53691753,117.49,117.44,14.91511651]
[1769725617968,6.75604839,117.48,117.44,14.91511651]
[1769725618269,33.53691753,117.49,117.44,14.91511651]
[1769725618565,6.75620335,117.48,117.44,14.91511651]
[1769725618767,33.53691753,117.49,117.44,14.91511651]
[1769725618965,6.75620335,117.48,117.44,14.91511651]
[1769725619163,33.53691753,117.49,117.44,14.91511651]
[1769725619364,6.75639469,117.48,117.44,14.91511651]
[1769725619566,33.53691753,117.49,117.44,14.91511651]
[1769725619766,6.75639469,117.48,117.44,14.91511651]
[1769725619966,33.53691753,117.49,117.44,14.91511651]
[1769725620166,6.75639469,117.48,117.44,14.91511651]
[1769725620364,33.53691753,117.49,117.44,14.91511651]
[1769725620565,6.7565702,117.48,117.44,14.91511651]
[1769725620764,23.07668171,117.49,117.44,17.70165233]
[1769725621069,6.75647343,117.48,117.44,17.70165233]
[1769725621268,23.07668171,117.49,117.44,17.70165233]
[1769725621468,6.75650776,117.48,117.44,17.70165233]
[1769725621668,23.07668171,117.49,117.44,17.70165233]
[1769725621869,6.75650776,117.48,117.44,17.70165233]
[1769725622067,23.07668171,117.49,117.44,17.70165233]
[1769725622269,6.75650776,117.48,117.44,17.70165233]
[1769725622469,23.07668171,117.49,117.44,17.70165233]
[1769725622665,6.75659283,117.48,117.44,17.70165233]
[1769725622863,25.86321753,117.49,117.44,14.91511651]
[1769725623065,6.75659677,117.48,117.44,14.91511651]
[1769725623265,25.86321753,117.49,117.44,14.91511651]
[1769725623466,6.75674431,117.48,117.44,14.91511651]
[1769725623666,25.86321753,117.49,117.44,14.91511651]
[1769725623868,6.75674431,117.48,117.44,14.91511651]
[1769725624067,25.86321753,117.49,117.44,14.91511651]
[1769725624367,6.75674037,117.48,117.44,14.91511651]
[1769725624567,25.86321753,117.49,117.44,14.91511651]
[1769725624770,6.75692999,117.48,117.44,14.91511651]
[1769725624967,25.86321753,117.49,117.44,14.91511651]
[1769725625167,6.75693254,117.48,117.44,14.91511651]
[1769725625367,25.86321753,117.49,117.44,14.91511651]
[1769725625671,6.75718479,117.48,117.44,14.91511651]
[1769725625968,25.86321753,117.49,117.44,14.91511651]
[1769725626169,6.75718223,117.48,117.44,14.91511651]
[1769725626367,25.86321753,117.49,117.44,14.91511651]
[1769725626569,6.75749716,117.48,117.44,14.91511651]
[1769725626769,25.86321753,117.49,117.44,14.91511651]
[1769725627069,6.75749716,117.48,117.44,14.91511651]
[1769725627270,25.86321753,117.49,117.44,14.91511651]
[1769725627469,6.75743246,117.48,117.44,14.91511651]
[1769725627770,23.07668171,117.49,117.44,14.91511651]
[1769725627965,6.75743246,117.48,117.44,14.91511651]
[1769725628170,23.07668171,117.49,117.44,14.91511651]
[1769725628368,6.75729182,117.48,117.44,14.91511651]
[1769725628569,23.07668171,117.49,117.44,14.91511651]
[1769725628771,6.75729182,117.48,117.44,14.91511651]
[1769725628970,23.07668171,117.49,117.44,14.91511651]
[1769725629172,6.75729182,117.48,117.44,14.91511651]
[1769725629369,23.07668171,117.49,117.44,14.91511651]
[1769725629569,6.75716027,117.48,117.44,14.91511651]
[1769725629769,23.07668171,117.49,117.44,14.91511651]
[1769725629967,6.75716027,117.48,117.44,14.91511651]
[1769725630271,23.07668171,117.49,117.44,14.91511651]
[1769725630469,6.7570371,117.48,117.44,14.91511651]
[1769725630676,23.07668171,117.49,117.44,14.91511651]
[1769725630978,6.7570371,117.48,117.44,14.91511651]
[1769725631171,23.07668171,117.49,117.44,14.91511651]
[1769725631371,6.75692175,117.48,117.44,14.91511651]
[1769725631572,23.07668171,117.49,117.44,14.91511651]
[1769725631773,6.75692175,117.48,117.44,14.91511651]
[1769725631968,23.07668171,117.49,117.44,14.91511651]
[1769725632168,6.75692175,117.48,117.44,14.91511651]
[1769725632469,23.07668171,117.49,117.44,14.91511651]
[1769725632669,6.75681383,117.48,117.44,14.91511651]
[1769725632869,23.07668171,117.49,117.44,14.91511651]
[1769725633070,6.75681383,117.48,117.44,14.91511651]
[1769725633370,23.07668171,117.49,117.44,14.91511651]
[1769725633567,6.75671297,117.48,117.44,14.91511651]
[1769725633774,23.07668171,117.49,117.44,14.91511651]
[1769725633972,6.75671553,117.48,117.44,14.91511651]
[1769725634175,23.07668171,117.49,117.44,14.91511651]
[1769725634371,6.75662399,117.48,117.44,14.91511651]
[1769725634678,23.07668171,117.49,117.44,14.91511651]
[1769725634879,6.75662399,117.48,117.44,14.91511651]
[1769725635076,23.07668171,117.49,117.44,14.91511651]
[1769725635277,6.75662399,117.48,117.44,14.91511651]
[1769725635477,25.86321753,117.49,117.44,14.91511651]
[1769725635678,6.75653873,117.48,117.44,14.91511651]
[1769725635876,25.86321753,117.49,117.44,14.91511651]
[1769725636077,6.75653873,117.48,117.44,14.91511651]
[1769725636277,25.86321753,117.49,117.44,14.91511651]
[1769725636479,6.75645953,117.48,117.44,14.91511651]
[1769725636680,25.86321753,117.49,117.44,14.91511651]
[1769725636882,6.75645896,117.48,117.44,14.91511651]
[1769725637182,25.86321753,117.49,117.44,14.91511651]
[1769725637380,6.75638678,117.48,117.44,14.91511651]
[1769725637582,25.86321753,117.49,117.44,14.91511651]
[1769725637776,6.75638678,117.48,117.44,14.91511651]
[1769725637977,23.07668171,117.49,117.44,14.91511651]
[1769725638177,6.75638678,117.48,117.44,14.91511651]
[1769725638377,25.86321753,117.49,117.44,14.91511651]
[1769725638578,6.75632019,117.48,117.44,14.91511651]
[1769725638775,25.86321753,117.49,117.44,14.91511651]
[1769725639080,6.75632019,117.48,117.44,14.91511651]
[1769725639282,25.86321753,117.49,117.44,14.91511651]
[1769725639582,6.75625903,117.48,117.44,14.91511651]
[1769725639781,25.86321753,117.49,117.44,14.91511651]
[1769725639974,6.75625903,117.48,117.44,14.91511651]
[1769725640174,25.86321753,117.49,117.44,14.91511651]
[1769725640473,6.75620316,117.48,117.44,14.91511651]
[1769725640781,25.86321753,117.49,117.44,14.91511651]
[1769725640982,6.75620316,117.48,117.44,14.91511651]
[1769725641177,25.86321753,117.49,117.44,14.91511651]
[1769725641378,6.7561532,117.48,117.44,14.91511651]
[1769725641677,25.86321753,117.49,117.44,14.91511651]
[1769725641978,6.7561532,117.48,117.44,14.91511651]
[1769725642178,25.86321753,117.49,117.44,14.91511651]
[1769725642380,6.75610848,117.48,117.44,14.91511651]
[1769725642581,25.86321753,117.49,117.44,14.91511651]
[1769725642880,6.75610848,117.48,117.44,14.91511651]
[1769725643082,25.86321753,117.49,117.44,14.91511651]
[1769725643276,6.75610848,117.48,117.44,14.91511651]
[1769725643478,25.86321753,117.49,117.44,14.91511651]
[1769725643685,6.75606884,117.48,117.44,14.91511651]
[1769725643883,25.86321753,117.49,117.44,14.91511651]
[1769725644085,6.75606884,117.48,117.44,14.91511651]
[1769725644272,25.86321753,117.49,117.44,14.91511651]
[1769725644577,6.75603423,117.48,117.44,14.91511651]
[1769725644775,25.86321753,117.49,117.44,14.91511651]
[1769725644977,6.75603423,117.48,117.44,14.91511651]
[1769725645173,25.86321753,117.49,117.44,14.91511651]
[1769725645378,6.75600457,117.48,117.44,14.91511651]
[1769725645578,25.86300448,117.49,117.44,14.91511651]
[1769725645774,6.75600457,117.48,117.44,14.91511651]
[1769725645978,25.86300448,117.49,117.44,14.91511651]
[1769725646183,6.74704126,117.48,117.44,14.91511651]
[1769725646483,25.86300448,117.49,117.44,14.91511651]
[1769725646783,6.74701652,117.48,117.44,14.91511651]
[1769725646982,25.86300448,117.49,117.44,14.91511651]
[1769725647184,6.74701652,117.48,117.44,14.91511651]
[1769725647386,25.86300448,117.49,117.44,14.91511651]
[1769725647586,6.7469966,117.48,117.44,14.91511651]
[1769725647787,25.86300448,117.49,117.44,14.91511651]
[1769725647987,6.7469966,117.48,117.44,14.91511651]
[1769725648287,25.86300448,117.49,117.44,14.91511651]
[1769725648489,20.21599543,117.47,117.42,13.32639372]
[1769725648885,2.78632277,117.46,117.42,13.32639372]
[1769725649088,23.0023182,117.47,117.42,13.32639372]
[1769725649283,6.74795712,117.46,117.42,13.32639372]
[1769725649588,23.0023182,117.47,117.42,13.32639372]
[1769725650278,23.0023182,117.47,117.42,21.00459372]
[1769725656898,20.21599543,117.47,117.42,21.00459372]
[1769725657097,23.0023182,117.47,117.42,21.00459372]
[1769725659401,2.78632277,117.46,117.42,21.00459372]
[1769725663308,23.0023182,117.47,117.42,21.00459372]
[1769725664308,2.78632277,117.49,117.44,13.16434508]
[1769725665203,23.86722994,117.49,117.44,13.16434508]
[1769725665606,2.78632277,117.48,117.44,13.16434508]
[1769725666308,2.78632277,117.47,117.43,7.6775]
[1769725666495,2.78632277,117.47,117.43,20.81724026]
[1769725669209,23.86722994,117.48,117.43,20.81724026]
[1769725674119,23.86722994,117.48,117.42,7.6782]
[1769725674314,30.73349297,117.47,117.42,20.72515212]
[1769725674513,23.86722994,117.47,117.42,20.72515212]
[1769725676822,2.78632277,117.44,117.4,12.99176183]
[1769725677021,23.1481467,117.44,117.38,15.76800022]
[1769725677420,2.78632277,117.43,117.38,20.66187745]
[1769725677816,23.1481467,117.44,117.38,23.44820022]
[1769725678418,6.99267503,117.43,117.38,23.44820022]
[1769725678619,23.1481467,117.44,117.38,23.44820022]
[1769725678821,6.99267503,117.43,117.38,23.44820022]
[1769725679011,23.1481467,117.44,117.38,23.44820022]
[1769725679214,6.99267503,117.43,117.38,23.44820022]
[1769725679419,23.1481467,117.44,117.38,23.44820022]
[1769725679618,6.99001943,117.43,117.38,23.44820022]
[1769725679816,23.1481467,117.44,117.38,23.44820022]
[1769725680022,6.99001943,117.43,117.38,23.44820022]
[1769725680323,23.1481467,117.44,117.38,23.44820022]
[1769725680517,6.98998035,117.43,117.38,23.44820022]
[1769725680816,23.1481467,117.44,117.38,23.44820022]
[1769725681011,6.98998035,117.43,117.38,23.44820022]
[1769725681212,23.1481467,117.44,117.38,23.44820022]
[1769725681927,23.1481467,117.44,117.39,12.94147241]
[1769725685430,20.36182393,117.44,117.39,15.72779518]
[1769725686230,20.36182393,117.44,117.39,15.73008939]
[1769725707542,20.36182393,117.44,117.39,15.72999212]
[1769725716358,20.36182393,117.44,117.39,23.41009212]
[1769725717455,6.99611256,117.43,117.39,23.41009212]
[1769725717653,36.92312495,117.46,117.4,23.10034395]
[1769725717858,6.99622437,117.45,117.41,15.42104395]
[1769725718053,21.31694666,117.46,117.41,15.42104395]
[1769725718254,6.99516161,117.45,117.41,15.42104395]
[1769725718454,21.31694666,117.46,117.41,15.42104395]
[1769725718654,6.99779255,117.45,117.41,15.42104395]
[1769725718855,21.31694666,117.46,117.41,15.42104395]
[1769725719054,6.99779,117.45,117.41,15.42104395]
[1769725719258,21.31694666,117.46,117.41,15.42104395]
[1769725719452,7.00007745,117.45,117.41,23.09984395]
[1769725719656,21.31694666,117.46,117.41,23.09984395]
[1769725719855,7.00007745,117.45,117.41,23.09984395]
[1769725720052,21.31694666,117.46,117.41,23.09984395]
[1769725720358,7.00013337,117.45,117.42,2.78851971]
[1769725720554,21.31694666,117.46,117.42,2.78851971]
[1769725720750,7.00286179,117.45,117.42,2.78851971]
[1769725720950,21.31694666,117.46,117.42,2.78851971]
[1769725721156,21.31694666,117.48,117.43,2.78851971]
[1769725721352,7.0040904,117.47,117.43,2.78851971]
[1769725721655,7.0040904,117.46,117.43,2.78851971]
[1769725721855,21.31694666,117.47,117.43,2.78851971]
[1769725722054,7.00379968,117.46,117.43,2.78851971]
[1769725722254,21.31694666,117.47,117.43,2.78851971]
[1769725723256,21.31694666,117.47,117.42,23.07493045]
[1769725724762,21.31694666,117.47,117.43,2.78851971]
[1769725730064,21.31694666,117.47,117.42,23.07493045]
[1769725730459,7.6736,117.49,117.44,2.78851971]
[1769725730460,21.31694666,117.49,117.44,2.78851971]
[1769725730667,6.9876615,117.48,117.45,2.78851971]
[1769725730860,21.31694666,117.49,117.44,2.78851971]
[1769725731062,6.98696224,117.48,117.44,2.78851971]
[1769725731262,21.31694666,117.49,117.43,15.34728384]
[1769725731467,6.98528251,117.48,117.44,7.6768]
[1769725731667,21.31694666,117.49,117.44,7.6768]
[1769725731859,28.30222917,117.48,117.44,7.6768]
[1769725732055,21.31694666,117.48,117.44,7.6768]
[1769725736168,21.31694666,117.48,117.44,10.46531971]
[1769725741768,21.31694666,117.48,117.43,12.55876413]
[1769725741769,21.31694666,117.48,117.43,23.02468384]
[1769725745376,24.10546637,117.48,117.43,20.23616413]
[1769725745585,2.78851971,117.45,117.41,12.49939932]
[1769725745775,22.61240298,117.45,117.41,12.49939932]
[1769725745978,22.61240298,117.45,117.39,15.28791903]
[1769725746780,22.61240298,117.45,117.4,7.6794]
[1769725747080,22.61240298,117.45,117.4,20.17023108]
[1769725751280,22.61240298,117.45,117.4,12.49083108]
[1769725751881,19.82388327,117.45,117.4,12.49083108]
[1769725754687,22.61240298,117.45,117.4,12.49083108]
[1769725756189,19.82388327,117.45,117.4,12.49083108]
[1769725757590,19.82388327,117.45,117.4,15.27935079]
[1769725764790,19.82388327,117.45,117.41,2.78851971]
[1769725764994,19.82388327,117.47,117.42,2.78851971]
[1769725765191,6.97930757,117.46,117.42,2.78851971]
[1769725765391,19.82388327,117.47,117.42,2.78851971]
[1769725765592,6.97947917,117.46,117.42,2.78851971]
[1769725765793,19.82388327,117.47,117.42,2.78851971]
[1769725765994,6.97902056,117.46,117.42,2.78851971]
[1769725766196,19.82388327,117.47,117.42,2.78851971]
[1769725766396,27.06093565,117.46,117.42,2.78851971]
[1769725766596,20.08221057,117.46,117.42,2.78851971]
[1769725767689,20.08221057,117.46,117.42,2.78674637]
[1769725772800,20.08221057,117.46,117.41,20.10195815]
[1769725772801,20.08221057,117.46,117.41,22.88870452]
[1769725774099,20.08221057,117.46,117.42,10.46484637]
[1769725778505,2.78674637,117.52,117.45,21.30119787]
[1769725778698,6.97879821,117.51,117.46,2.78674637]
[1769725779001,2.78674637,117.52,117.45,24.08794424]
[1769725780308,2.78674637,117.52,117.46,7.6754]
[1769725780511,19.54533679,117.51,117.46,7.6754]
[1769725780901,19.54533679,117.51,117.46,10.46214637]
[1769725792615,19.54533679,117.51,117.47,2.78674637]
[1769725793013,19.54533679,117.51,117.47,10.46164637]
[1769725793811,19.54533679,117.51,117.47,31.76284424]
[1769725800217,19.54533679,117.51,117.48,7.6741]
[1769725800412,19.54533679,117.51,117.48,10.46084637]
[1769725801420,21.25136529,117.53,117.48,10.46084637]
[1769725801819,21.25136529,117.55,117.5,10.45964637]
[1769725802221,21.25136529,117.55,117.5,7.6729]
[1769725803421,21.25136529,117.55,117.5,31.01093788]
[1769725806425,21.25136529,117.55,117.51,2.78674637]
[1769725806922,21.25136529,117.55,117.5,31.01093788]
[1769725807816,21.25136529,117.57,117.53,2.78674637]
[1769725808126,24.03811166,117.57,117.51,23.33803788]
[1769725808325,21.25136529,117.57,117.52,10.45774637]
[1769725808527,21.25136529,117.57,117.53,2.78674637]
[1769725810333,21.25136529,117.57,117.53,10.45774637]
[1769725811535,21.25136529,117.57,117.53,31.00903788]
[1769725814433,21.25136529,117.59,117.54,31.00823788]